fUST/lending_fUST_20251026
["ID","MTS","AMOUNT","RATE_DAILY","PERIOD"]
[392394014,1761425830891,-500.0,0.00015888,2]
[392394015,1761425830923,-500.0,0.00015888,2]
[392394016,1761425830956,-500.0,0.00015888,2]
[392394017,1761425830987,-500.0,0.00015888,2]
[392394018,1761425831017,-500.0,0.00015888,2]
[392394021,1761425833602,-500.0,0.00015888,2]
[392394022,1761425833636,-500.0,0.00015888,2]
[392394023,1761425833671,-500.0,0.00015888,2]
[392394024,1761425833704,-500.0,0.00015888,2]
[392394025,1761425833741,-500.0,0.00015888,2]
[392394026,1761425833774,-500.0,0.00015888,2]
[392394027,1761425833808,-500.0,0.00015888,2]
[392394028,1761425833845,-500.0,0.00015888,2]
[392394029,1761425833883,-500.0,0.00015888,2]
[392394030,1761425833920,-500.0,0.00015888,2]
[392394031,1761425833977,-500.0,0.00015888,2]
[392394032,1761425834010,-500.0,0.00015888,2]
[392394033,1761425834043,-500.0,0.00015888,2]
[392394034,1761425834076,-500.0,0.00015888,2]
[392394035,1761425834109,-500.0,0.00015888,2]
[392394036,1761425834142,-515.75385263,0.00015888,2]
[392394037,1761425834173,-500.0,0.00015888,2]
[392394038,1761425834203,-500.0,0.00015888,2]
[392394039,1761425834234,-500.0,0.00015888,2]
[392394040,1761425834278,-468.50229474,0.00015888,2]
[392394041,1761425834317,-31.49770526,0.00015888,2]
[392394042,1761425834351,-500.0,0.00015888,2]
[392394043,1761425834387,-576.58708173,0.00015888,2]
[392394044,1761425834422,-576.58708173,0.00015888,2]
[392394045,1761425834456,-576.58708173,0.00015888,2]
[392394046,1761425834489,-576.58708173,0.00015888,2]
[392394047,1761425834524,-576.58708173,0.00015888,2]
[392394048,1761425834555,-576.58708173,0.00015888,2]
[392394049,1761425834587,-576.58708173,0.00015888,2]
[392394050,1761425834621,-288.20836353,0.00015888,2]
[392394051,1761425834693,-288.3787182,0.00015888,2]
[392394052,1761425834725,-576.58708173,0.00015888,2]
[392394053,1761425834757,-576.58708173,0.00015888,2]
[392394054,1761425834788,-576.58708173,0.00015888,2]
[392394055,1761425834820,-576.58708173,0.00015888,2]
[392394056,1761425834851,-576.58708173,0.00015888,2]
[392394057,1761425834886,-576.58708173,0.00015888,2]
[392394058,1761425834918,-576.58708173,0.00015888,2]
[392394059,1761425834951,-576.58708173,0.00015888,2]
[392394060,1761425839087,278.07170711,0.00018985,7]
[392394061,1761425844838,-831.8559654,0.00014889,2]
[392394062,1761425845060,-1663.7119308,0.00014889,2]
[392394063,1761425845285,-3327.4238616,0.00014889,2]
[392394064,1761425845330,-3345.1622768,0.00014889,2]
[392394065,1761425845360,-288.24935182,0.00015033,2]
[392394066,1761425845692,-191.84724015,0.00015185,2]
[392394067,1761425847220,-96.40211167,0.00015185,2]
[392394068,1761425847242,-106.39448215,0.00015391,2]
[392394069,1761425854012,-412.45435112,0.00015391,2]
[392394070,1761425854658,-191.66162883,0.00015596,2]
[392394071,1761425857930,-263.8793124,0.00015596,2]
[392394072,1761425860548,-164.77441272,0.00015596,2]
[392394073,1761425862632,-242.4797702,0.00015596,2]
[392394074,1761425864550,5000.0,0.00015391,2]
[392394075,1761425869040,-59.60280167,0.00015596,2]
[392394077,1761425884195,-883.2283915,0.00015789,2]
[392394079,1761425886148,240.732712,0.00015545,2]
[392394084,1761425886959,4711.75064818,0.00015596,2]
[392394088,1761425893926,-300.0,0.00015801,2]
[392394089,1761425894216,300.0,0.000156,2]
[392394090,1761425899370,-1141.24675909,0.00015801,2]
[392394091,1761425914805,-1200.0,0.00015887,2]
[392394092,1761425914837,-300.0,0.00015887,2]
[392394093,1761425921894,7000.01,0.00015837,2]
[392394094,1761425921917,3352.60647591,0.00015837,2]
[392394095,1761425927886,6647.40352409,0.00015545,2]
[392394096,1761425927913,10000.01,0.00015545,2]
[392394097,1761425927938,10000.01,0.00015545,2]
[392394098,1761425927964,9412.01717591,0.00015545,2]
[392394099,1761425935774,-500.0,0.00015887,2]
[392394100,1761425935804,-500.0,0.00015887,2]
[392394101,1761425935832,-184.90004797,0.00015887,2]
[392394102,1761425935862,-500.0,0.00015887,2]
[392394103,1761425935906,-500.0,0.00015887,2]
[392394104,1761425935938,-500.0,0.00015887,2]
[392394105,1761425935968,-500.0,0.00015887,2]
[392394106,1761425935999,-500.0,0.00015887,2]
[392394107,1761425936029,-368.31686231,0.00015887,2]
[392394108,1761425936060,-484.94498893,0.00015887,2]
[392394109,1761425936090,-423.68620158,0.00015887,2]
[392394110,1761425936256,-76.31379842,0.00015887,2]
[392394111,1761425936285,-500.0,0.00015887,2]
[392394112,1761425936316,-500.0,0.00015887,2]
[392394113,1761425936344,-500.0,0.00015887,2]
[392394114,1761425936372,-572.93214674,0.00015887,2]
[392394115,1761425936401,-500.0,0.00015887,2]
[392394116,1761425936431,-500.0,0.00015887,2]
[392394117,1761425936458,-500.0,0.00015887,2]
[392394118,1761425936485,-536.51881394,0.00015887,2]
[392394119,1761425936514,-500.0,0.00015887,2]
[392394120,1761425936547,-128.4804818,0.00015887,2]
[392394121,1761425936688,-371.5195182,0.00015887,2]
[392394122,1761425936716,-500.0,0.00015887,2]
[392394123,1761425936746,-500.0,0.00015887,2]
[392394124,1761425936778,-500.0,0.00015887,2]
[392394125,1761425936806,-500.0,0.00015887,2]
[392394126,1761425936837,-500.0,0.00015887,2]
[392394127,1761425936871,-500.0,0.00015887,2]
[392394128,1761425936903,-500.0,0.00015887,2]
[392394129,1761425936934,-500.0,0.00015887,2]
[392394130,1761425936962,-500.0,0.00015887,2]
[392394131,1761425937060,-500.0,0.00015887,2]
[392394132,1761425937090,-500.0,0.00015887,2]
[392394133,1761425937119,-500.0,0.00015887,2]
[392394134,1761425937148,-500.0,0.00015887,2]
[392394135,1761425937180,-500.0,0.00015887,2]
[392394136,1761425937211,-500.0,0.00015887,2]
[392394137,1761425937242,-500.0,0.00015887,2]
[392394138,1761425937271,-500.0,0.00015887,2]
[392394139,1761425937300,-500.0,0.00015887,2]
[392394140,1761425937330,-500.0,0.00015887,2]
[392394141,1761425937624,-640.57507988,0.00015887,2]
[392394142,1761425937653,-500.0,0.00015887,2]
[392394143,1761425937682,-500.0,0.00015887,2]
[392394144,1761425937711,-500.0,0.00015887,2]
[392394145,1761425937741,-500.0,0.00015887,2]
[392394146,1761425937770,-500.0,0.00015887,2]
[392394147,1761425937800,-500.0,0.00015887,2]
[392394148,1761425937830,-500.0,0.00015887,2]
[392394149,1761425937860,-500.0,0.00015887,2]
[392394150,1761425937896,-218.85984024,0.00015887,2]
[392394151,1761425938112,-281.14015976,0.00015887,2]
[392394152,1761425938143,-500.0,0.00015887,2]
[392394153,1761425938174,-500.0,0.00015887,2]
[392394154,1761425938206,-500.0,0.00015887,2]
[392394155,1761425938237,-500.0,0.00015887,2]
[392394156,1761425938266,-500.0,0.00015887,2]
[392394157,1761425938297,-500.0,0.00015887,2]
[392394158,1761425938328,-500.0,0.00015887,2]
[392394159,1761425938357,-500.0,0.00015887,2]
[392394160,1761425938386,-500.0,0.00015887,2]
[392394161,1761425938761,157.14521273,0.00015787,2]
[392394165,1761425947836,-1383.2734539,0.00014919,2]
[392394166,1761425947864,-157.14521272,0.00015787,2]
[392394167,1761425947896,-157.14521272,0.00015788,2]
[392394168,1761425947928,-300.0,0.00015886,2]
[392394169,1761425947960,-500.0,0.00015887,2]
[392394170,1761425947992,-500.0,0.00015887,2]
[392394171,1761425948023,-514.5756844,0.00015887,2]
[392394172,1761425948055,-500.0,0.00015887,2]
[392394173,1761425948086,-500.0,0.00015887,2]
[392394174,1761425948118,-475.73087252,0.00015887,2]
[392394175,1761425948254,-24.26912748,0.00015887,2]
[392394176,1761425948285,-500.0,0.00015887,2]
[392394177,1761425948317,-500.0,0.00015887,2]
[392394178,1761425948348,-500.0,0.00015887,2]
[392394179,1761425948379,-500.0,0.00015887,2]
[392394180,1761425948410,-500.0,0.00015887,2]
[392394181,1761425948441,-500.0,0.00015887,2]
[392394182,1761425948471,-500.0,0.00015887,2]
[392394183,1761425948501,-500.0,0.00015887,2]
[392394184,1761425948531,-500.0,0.00015887,2]
[392394185,1761425948561,-451.47174504,0.00015887,2]
[392394186,1761425948821,-48.52825496,0.00015887,2]
[392394188,1761425948851,-500.0,0.00015887,2]
[392394189,1761425948881,-500.0,0.00015887,2]
[392394190,1761425948913,-500.0,0.00015887,2]
[392394192,1761425949038,-500.0,0.00015887,2]
[392394194,1761425949071,-500.0,0.00015887,2]
[392394195,1761425949103,-500.0,0.00015887,2]
[392394196,1761425949137,-500.0,0.00015887,2]
[392394198,1761425949169,-500.0,0.00015887,2]
[392394199,1761425949200,-500.0,0.00015887,2]
[392394201,1761425950698,500.0,0.00015887,2]
[392394202,1761425950730,402.95349008,0.00015887,2]
[392394203,1761425950755,97.04650992,0.00015887,2]
[392394204,1761425950786,500.0,0.00015887,2]
[392394205,1761425950925,500.0,0.00015887,2]
[392394206,1761425950958,500.0,0.00015887,2]
[392394207,1761425950989,500.0,0.00015887,2]
[392394208,1761425951021,500.0,0.00015887,2]
[392394209,1761425951052,500.0,0.00015887,2]
[392394210,1761425951085,500.0,0.00015887,2]
[392394211,1761425951117,500.0,0.00015887,2]
[392394212,1761425951186,500.0,0.00015887,2]
[392394213,1761425951220,500.0,0.00015887,2]
[392394214,1761425951263,500.0,0.00015887,2]
[392394215,1761425951329,500.0,0.00015887,2]
[392394216,1761425951620,650.0,0.00015887,2]
[392394217,1761425951970,157.14521272,0.00015788,2]
[392394218,1761425957042,-500.0,0.00015887,2]
[392394219,1761425957072,-383.18347892,0.00015887,2]
[392394220,1761425957103,-227.34253722,0.00015887,2]
[392394221,1761425959330,4627.3180183,0.00015887,2]
[392394222,1761425964427,500.0,0.00015887,2]
[392394223,1761425964460,600.0,0.00015887,2]
[392394224,1761425964497,500.0,0.00015887,2]
[392394225,1761425964535,500.0,0.00015887,2]
[392394226,1761425964592,500.0,0.00015887,2]
[392394227,1761425964648,500.0,0.00015887,2]
[392394228,1761425964703,51.63994942,0.00015887,2]
[392394229,1761425964729,448.36005058,0.00015887,2]
[392394230,1761425975439,-5000.0,0.00015888,2]
[392394231,1761425982933,0.01,0.00015887,2]
[392394232,1761425982959,499.99,0.00015887,2]
[392394233,1761425982992,500.0,0.00015887,2]
[392394234,1761425983234,500.0,0.00015887,2]
[392394235,1761425983266,500.0,0.00015887,2]
[392394236,1761425983530,500.0,0.00015887,2]
[392394237,1761425983570,500.0,0.00015887,2]
[392394238,1761425984055,500.0,0.00015887,2]
[392394239,1761425984087,500.0,0.00015887,2]
[392394240,1761425984136,500.0,0.00015887,2]
[392394241,1761425984168,500.0,0.00015887,2]
[392394242,1761425984420,500.0,0.00015887,2]
[392394243,1761425984457,500.0,0.00015887,2]
[392394244,1761425984492,338.82572838,0.00015887,2]
[392394245,1761425984524,500.0,0.00015887,2]
[392394246,1761425984554,500.0,0.00015887,2]
[392394247,1761425984585,500.0,0.00015887,2]
[392394248,1761425984628,500.0,0.00015887,2]
[392394249,1761425984659,500.0,0.00015887,2]
[392394250,1761425984696,500.0,0.00015887,2]
[392394251,1761425984734,500.0,0.00015887,2]
[392394252,1761425984794,161.19427162,0.00015887,2]
[392394253,1761425984820,338.80572838,0.00015887,2]
[392394254,1761425984850,500.0,0.00015887,2]
[392394255,1761425984913,500.0,0.00015887,2]
[392394256,1761425984983,500.0,0.00015887,2]
[392394257,1761425985025,500.0,0.00015887,2]
[392394258,1761425985063,500.0,0.00015887,2]
[392394259,1761425985099,500.0,0.00015887,2]
[392394260,1761425985131,500.0,0.00015887,2]
[392394261,1761425985163,182.38801671,0.00015887,2]
[392394262,1761425985198,500.0,0.00015887,2]
[392394263,1761425985232,500.0,0.00015887,2]
[392394264,1761425985266,500.0,0.00015887,2]
[392394265,1761425985298,500.0,0.00015887,2]
[392394266,1761425985341,500.0,0.00015887,2]
[392394267,1761425985372,500.0,0.00015887,2]
[392394268,1761425989169,2978.81625491,0.00015888,2]
[392394269,1761425989195,2021.18374509,0.00015888,2]
[392394270,1761425996735,-9858.73952831,0.00015888,2]
[392394271,1761425996850,-10000.01,0.00015888,2]
[392394272,1761425997010,-10000.01,0.00015888,2]
[392394273,1761425997157,-10000.01,0.00015888,2]
[392394274,1761425997284,-10000.01,0.00015888,2]
[392394275,1761425997416,-141.22047169,0.00015888,2]
[392394276,1761426003749,500.0,0.00015888,2]
[392394277,1761426004097,500.0,0.00015888,2]
[392394278,1761426004686,500.0,0.00015888,2]
[392394279,1761426004890,500.0,0.00015888,2]
[392394284,1761426008404,-300.0,0.00015889,2]
[392394285,1761426008434,-300.0,0.00015889,2]
[392394286,1761426008464,-300.0,0.00015889,2]
[392394287,1761426008493,-300.0,0.00015889,2]
[392394288,1761426008522,-300.0,0.00015889,2]
[392394289,1761426008552,-1200.0,0.00015889,2]
[392394290,1761426009141,151.0,0.00015888,2]
[392394291,1761426009746,151.0,0.00015888,2]
[392394292,1761426011729,4298.01,0.00015888,2]
[392394293,1761426011755,701.99,0.00015888,2]
[392394294,1761426021105,500.0,0.00015887,2]
[392394295,1761426021371,500.0,0.00015887,2]
[392394296,1761426021606,500.0,0.00015887,2]
[392394297,1761426021852,500.0,0.00015887,2]
[392394298,1761426034306,5000.0,0.0001589,2]
[392394299,1761426038221,546.88,0.00015889,2]
[392394300,1761426042627,500.0,0.00015887,2]
[392394301,1761426042663,500.0,0.00015887,2]
[392394302,1761426042713,500.0,0.00015887,2]
[392394303,1761426042748,500.0,0.00015887,2]
[392394304,1761426042781,500.0,0.00015887,2]
[392394305,1761426042813,500.0,0.00015887,2]
[392394306,1761426042851,500.0,0.00015887,2]
[392394307,1761426042887,244.05275271,0.00015887,2]
[392394308,1761426042948,500.0,0.00015887,2]
[392394309,1761426042997,209.07724729,0.00015887,2]
[392394310,1761426043026,290.92275271,0.00015887,2]
[392394311,1761426043070,500.0,0.00015887,2]
[392394312,1761426043106,500.0,0.00015887,2]
[392394313,1761426043165,500.0,0.00015887,2]
[392394314,1761426047412,2011.0,0.00015,120]
[392394315,1761426056464,5000.0,0.0001589,2]
[392394316,1761426062491,300.0,0.00015889,2]
[392394317,1761426079123,1257.43426294,0.0001589,2]
[392394318,1761426088029,1651.65298435,0.0001585,2]
[392394319,1761426088056,768.34701565,0.0001585,2]
[392394320,1761426093077,956.1976361,0.00015799,2]
[392394321,1761426118853,500.0,0.00015889,2]
[392394322,1761426119677,500.0,0.00015889,2]
[392394323,1761426119713,500.0,0.00015889,2]
[392394324,1761426119746,500.0,0.00015889,2]
[392394325,1761426119782,500.0,0.00015889,2]
[392394326,1761426119822,207.2331266,0.00015889,2]
[392394327,1761426119855,500.0,0.00015889,2]
[392394328,1761426119889,500.0,0.00015889,2]
[392394329,1761426119924,500.0,0.00015889,2]
[392394330,1761426119975,500.0,0.00015889,2]
[392394331,1761426120008,535.55033278,0.00015889,2]
[392394332,1761426120045,535.53201634,0.00015889,2]
[392394333,1761426120104,500.0,0.00015889,2]
[392394334,1761426120147,500.0,0.00015889,2]
[392394335,1761426120240,253.76937431,0.00015889,2]
[392394336,1761426122226,300.0,0.00015889,2]
[392394337,1761426134360,-217.37243874,0.0001589,2]
[392394338,1761426136629,-281.98927418,0.0001589,2]
[392394339,1761426142272,358.05388058,0.00015216,2]
[392394340,1761426143532,585.32661764,0.00015458,2]
[392394341,1761426143558,59.17036741,0.00015458,2]
[392394342,1761426145178,1145.77241787,0.00015701,2]
[392394343,1761426158540,1200.0,0.00015889,2]
[392394344,1761426180419,7144.228411,0.00014958,2]
[392394345,1761426182243,300.0,0.00015889,2]
[392394346,1761426242525,300.0,0.00015889,2]
[392394347,1761426254101,1055.781589,0.00015058,2]
[392394348,1761426254123,1748.7096035,0.00015058,2]
[392394349,1761426262771,8251.3003965,0.00015869,2]
[392394350,1761426262795,1829.4219369,0.00015869,2]
[392394351,1761426271920,3932.191968,0.00014938,2]
[392394352,1761426291657,500.0,0.00015887,2]
[392394353,1761426291946,500.0,0.00015887,2]
[392394354,1761426292198,621.94419722,0.00015887,2]
[392394355,1761426294119,500.0,0.00015887,2]
[392394356,1761426294367,500.0,0.00015887,2]
[392394357,1761426294626,500.0,0.00015887,2]
[392394358,1761426294877,500.0,0.00015887,2]
[392394359,1761426295158,500.0,0.00015889,2]
[392394360,1761426295413,116.45189788,0.00015889,2]
[392394361,1761426295438,383.54810212,0.00015889,2]
[392394362,1761426300240,284.62138392,0.00015442,2]
[392394363,1761426301243,300.0,0.00015889,2]
[392394364,1761426301505,325.28158163,0.00015675,2]
[392394365,1761426302009,300.0,0.00015889,2]
[392394366,1761426302694,300.0,0.00015889,2]
[392394367,1761426302801,300.0,0.00015889,2]
[392394368,1761426304949,1200.0,0.00015889,2]
[392394369,1761426321278,168.956402,7.471e-05,2]
[392394370,1761426321468,168.956402,9.338e-05,2]
[392394371,1761426321663,168.956402,0.00011206,2]
[392394372,1761426321867,168.956402,0.00013074,2]
[392394373,1761426322078,168.956402,0.00014941,2]
[392394374,1761426328444,836.67293157,0.000158,2]
[392394375,1761426328987,2034.80968811,0.00015774,2]
[392394378,1761426335838,200.0,0.00028823,120]
[392394379,1761426336879,200.0,0.00028823,120]
[392394382,1761426337968,262.31480131,0.00028823,120]
[392394387,1761426362735,300.0,0.00015889,2]
[392394388,1761426386115,2590.29430265,0.00014941,2]
[392394389,1761426386146,4393.65139085,0.00014941,2]
[392394390,1761426458593,1200.0,0.00015889,2]
[392394391,1761426463773,999.0,0.00014969,2]
[392394392,1761426482594,300.0,0.00015889,2]
[392394393,1761426483567,157.01,0.00015135,2]
[392394394,1761426494255,500.0,0.00015887,2]
[392394395,1761426494539,500.0,0.00015887,2]
[392394396,1761426494791,272.7494695,0.00015887,2]
[392394397,1761426542636,300.0,0.00015889,2]
[392394398,1761426543020,1377.59913965,0.00014969,2]
[392394399,1761426543047,3454.26956935,0.00014969,2]
[392394400,1761426544305,500.0,0.00015889,2]
[392394406,1761426602002,300.0,0.00015889,2]
[392394407,1761426602936,300.0,0.00015889,2]
[392394408,1761426603122,300.0,0.00015889,2]
[392394409,1761426603344,5145.74043065,0.0001588,2]
[392394410,1761426603570,2918.83743607,0.0001588,2]
[392394411,1761426604440,1200.0,0.00015889,2]
[392394413,1761426623830,732.08881515,0.00015798,2]
[392394414,1761426624945,1877.408618,0.00014969,2]
[392394452,1761426632004,-2000.48799593,0.0001589,2]
[392394454,1761426632016,-2357.75889568,0.0001589,2]
[392394460,1761426632059,-1048.0064981,0.0001589,2]
[392394757,1761426636264,153.60453898,0.00015889,2]
[392394765,1761426637726,-978.88384062,0.0001589,2]
[392394767,1761426637780,-1165.0,0.0001589,2]
[392394768,1761426640248,-3e-08,0.0001589,2]
[392394769,1761426640760,240.47620025,0.00015889,2]
[392394772,1761426644398,-201.80210109,0.0001589,2]
[392394778,1761426662526,300.0,0.00015889,2]
[392394779,1761426722116,198.74335244,0.00015798,2]
[392394780,1761426722483,300.0,0.00015889,2]
[392394781,1761426758906,1200.0,0.00015889,2]
[392394782,1761426761454,500.0,0.00015889,2]
[392394783,1761426763798,-196.00764874,0.0001589,2]
[392394784,1761426765389,-234.8013381,0.0001589,2]
[392394785,1761426782300,300.0,0.00015889,2]
[392394786,1761426842513,300.0,0.00015889,2]
[392394787,1761426854521,500.0,0.00015887,2]
[392394788,1761426902093,300.0,0.00015889,2]
[392394789,1761426902137,1200.0,0.00015889,2]
[392394790,1761426902170,300.0,0.00015889,2]
[392394791,1761426903016,215.0,0.00015889,2]
[392394793,1761426904957,1382.68847518,0.0001588,2]
[392394794,1761426904984,10000.01,0.0001588,2]
[392394795,1761426905010,10000.01,0.0001588,2]
[392394796,1761426905035,10000.01,0.0001588,2]
[392394797,1761426905060,10000.01,0.0001588,2]
[392394798,1761426905085,10000.01,0.0001588,2]
[392394799,1761426905110,10000.01,0.0001588,2]
[392394800,1761426905135,10000.01,0.0001588,2]
[392394801,1761426905161,10000.01,0.0001588,2]
[392394802,1761426905186,10000.01,0.0001588,2]
[392394803,1761426944035,6694.55993083,0.00015789,2]
[392394804,1761426946067,3305.45006917,0.00015817,2]
[392394805,1761426946096,3389.10986166,0.00015817,2]
[392394806,1761426946784,1161.02452541,0.00015876,2]
[392394807,1761426948053,5449.87561293,0.00015845,2]
[392394808,1761426948079,1244.6843179,0.00015845,2]
[392394809,1761426950042,6694.55993083,0.00015872,2]
[392394810,1761426962679,2060.76575127,0.00015876,2]
[392394811,1761426962704,2939.23424873,0.00015876,2]
[392394812,1761426970301,5000.0,0.00015876,2]
[392394813,1761426985871,2060.77575127,0.00015876,2]
[392394814,1761426985899,2939.22424873,0.00015876,2]
[392394815,1761426989568,-300.0,0.00015879,2]
[392394816,1761426993637,5000.0,0.00015879,2]
[392394817,1761427009213,4400.01,0.00015879,2]
[392394818,1761427009240,599.99,0.00015879,2]
[392394819,1761427016928,3816.03746109,0.00015879,2]
[392394820,1761427019172,205.85647838,0.000158,2]
[392394821,1761427019989,-268.22843525,0.00015879,2]
[392394822,1761427020024,-500.0,0.00015879,2]
[392394823,1761427020058,-500.0,0.00015879,2]
[392394824,1761427020093,-500.0,0.00015879,2]
[392394825,1761427020125,-500.0,0.00015879,2]
[392394826,1761427020160,-500.0,0.00015879,2]
[392394827,1761427020198,-500.0,0.00015879,2]
[392394828,1761427020233,-500.0,0.00015879,2]
[392394829,1761427020267,-500.0,0.00015879,2]
[392394830,1761427020303,-500.0,0.00015879,2]
[392394831,1761427020459,-500.0,0.00015879,2]
[392394832,1761427020492,-500.0,0.00015879,2]
[392394833,1761427020525,-500.0,0.00015879,2]
[392394834,1761427020556,-443.23038331,0.00015879,2]
[392394835,1761427020588,-500.0,0.00015879,2]
[392394836,1761427020623,-500.0,0.00015879,2]
[392394837,1761427020656,-500.0,0.00015879,2]
[392394838,1761427020695,-500.0,0.00015879,2]
[392394839,1761427020729,-500.0,0.00015879,2]
[392394840,1761427020763,-405.66110219,0.00015879,2]
[392394841,1761427020900,-500.0,0.00015879,2]
[392394842,1761427020934,-500.0,0.00015879,2]
[392394843,1761427020968,-500.0,0.00015879,2]
[392394844,1761427021001,-500.0,0.00015879,2]
[392394845,1761427021036,-500.0,0.00015879,2]
[392394846,1761427021071,-500.0,0.00015879,2]
[392394847,1761427021104,-500.0,0.00015879,2]
[392394848,1761427021137,-500.0,0.00015879,2]
[392394849,1761427021169,-500.0,0.00015879,2]
[392394850,1761427021203,-500.0,0.00015879,2]
[392394851,1761427021363,-500.0,0.00015879,2]
[392394852,1761427021398,-500.0,0.00015879,2]
[392394853,1761427021432,-500.0,0.00015879,2]
[392394854,1761427021469,-500.0,0.00015879,2]
[392394855,1761427021504,-500.0,0.00015879,2]
[392394856,1761427021540,-500.0,0.00015879,2]
[392394857,1761427021576,-500.0,0.00015879,2]
[392394858,1761427021614,-500.0,0.00015879,2]
[392394859,1761427021653,-500.0,0.00015879,2]
[392394860,1761427021687,-500.0,0.00015879,2]
[392394861,1761427021792,-500.0,0.00015879,2]
[392394862,1761427021828,-500.0,0.00015879,2]
[392394863,1761427021869,-500.0,0.00015879,2]
[392394864,1761427021909,-500.0,0.00015879,2]
[392394865,1761427021949,-500.0,0.00015879,2]
[392394866,1761427022237,-500.0,0.00015879,2]
[392394867,1761427022273,-500.0,0.00015879,2]
[392394868,1761427022309,-500.0,0.00015879,2]
[392394869,1761427022345,-500.0,0.00015879,2]
[392394870,1761427022383,-442.6188657,0.00015879,2]
[392394871,1761427022546,-114.7722686,0.00015879,2]
[392394872,1761427022582,-500.0,0.00015879,2]
[392394873,1761427022619,-500.0,0.00015879,2]
[392394874,1761427026983,-300.0,0.00015878,2]
[392394875,1761427032815,-5000.0,0.00015721,2]
[392394876,1761427033283,-6489.5168485,0.0001588,2]
[392394877,1761427033416,-10000.01,0.0001588,2]
[392394878,1761427033546,-10000.01,0.0001588,2]
[392394879,1761427038223,-10000.01,0.0001588,2]
[392394880,1761427038353,-10000.01,0.0001588,2]
[392394881,1761427038483,-10000.01,0.0001588,2]
[392394882,1761427038626,-10000.01,0.0001588,2]
[392394883,1761427038750,-10000.01,0.0001588,2]
[392394884,1761427038876,-10000.01,0.0001588,2]
[392394885,1761427039006,-10000.01,0.0001588,2]
[392394886,1761427044425,-5000.0,0.00015721,2]
[392394887,1761427056504,0.01,0.00015721,2]
[392394888,1761427056530,4999.99,0.00015721,2]
[392394889,1761427059592,-395.3470981,0.00015789,2]
[392394890,1761427064819,4284.80716483,0.00015789,2]
[392394891,1761427074711,-205.85647838,0.000158,2]
[392394892,1761427079170,205.85647838,0.000158,2]
[392394893,1761427089995,-2034.80968811,0.00015867,2]
[392394894,1761427105224,-1200.0,0.00015879,2]
[392394895,1761427105255,-300.0,0.00015879,2]
[392394896,1761427142364,300.0,0.00015878,2]
[392394897,1761427174196,697.4163385,0.00015789,2]
[392394898,1761427183843,-262.33970386,0.00015879,2]
[392394899,1761427187925,-164.75184493,0.00015879,2]
[392394900,1761427190088,-72.90845121,0.00015879,2]
[392394901,1761427190111,-116.99860357,0.00015879,2]
[392394902,1761427191709,-124.59933148,0.00015879,2]
[392394903,1761427191732,-71.40066852,0.00015879,2]
[392394904,1761427196109,-158.501061,0.00015879,2]
[392394905,1761427199064,-270.09827048,0.00015879,2]